Cogmind - Beta 9.2 @@@ ROGUE MODE // 2019.11.28 @ 18:07:15 Player: Cipherpunk Result: Destroyed by G-34 Mercenary with Small Laser Performance ------------- Evolutions (1) 500 Regions Visited (3) 600 Robots Destroyed (38) 190 Value Destroyed (998) 998 Prototype IDs (1) 20 Alien Tech Used (0) 0 Bonus (4) 4 TOTAL SCORE: 2312 Bonus ------- High Alert Combat Kills 4 Cogmind --------- Core Integrity 0/400 Matter 300/300 Energy 265/265 System Corruption 2% Temperature Cool (6) Movement Core (450) Ox8 Location -9/Storage Parts ------- > --- POWER (1) -------- Reinforced Ion Engine > --- PROPULSION (3) --- (None) > --- UTILITY (3) ------ Large Storage Unit Sensor Array > --- WEAPON (2) ------- (None) > --- INVENTORY (10) --- Aluminum Leg Aluminum Leg Aluminum Leg Large Storage Unit Transport Network Coupler Light Assault Rifle Light Assault Rifle Light Assault Rifle Autogun Grenade Launcher Peak State ------------ > --- POWER ------------ Cooled Ion Engine > --- PROPULSION ------- Aluminum Leg Aluminum Leg Aluminum Leg > --- UTILITY ---------- Medium Storage Unit Large Matter Pod Medium Armor Plating > --- WEAPON ----------- Heavy EM Pulse Gun Heavy EM Pulse Gun > --- INVENTORY -------- Reinforced Ion Engine Medium Storage Unit Sensor Array Medium Armor Plating Light Assault Rifle Light Assault Rifle Light Assault Rifle Grenade Launcher [Rating: 15] Favorites ----------- Power Cooled Ion Engine Engine Cooled Ion Engine Propulsion Aluminum Leg Leg Aluminum Leg Utility Large Matter Pod Device Sensor Array Storage Large Matter Pod Protection Medium Armor Plating Weapon Light Assault Rifle Energy Gun Heavy EM Pulse Gun Ballistic Gun Light Assault Rifle Launcher Grenade Launcher Impact Weapon Flail Build | -11 -10 -9 -9 ------- Run | Scr Mat Mat Sto Slots Evolved 2 | . . 2 . Power . | . . . . Propulsion 1 | . . 1 . Utility 1 | . . 1 . Weapon . | . . . . Parts Attached 48 | 7 5 19 17 Power 5 | 1 . 3 1 Engine 5 | 1 . 3 1 Core . | . . . . Reactor . | . . . . Propulsion 14 | 2 . 6 6 Treads . | . . . . Leg 14 | 2 . 6 6 Wheel . | . . . . Hover . | . . . . Flight . | . . . . Utility 14 | 1 2 6 5 Device 5 | . 1 1 3 Storage 6 | 1 1 3 1 Processor . | . . . . Hackware . | . . . . Protection 3 | . . 2 1 Artifact . | . . . . Weapon 15 | 3 3 4 5 Energy Gun 8 | 2 2 2 2 Energy Cannon . | . . . . Ballistic Gun 5 | 1 1 2 1 Ballistic Cannon . | . . . . Launcher 1 | . . . 1 Special Weapon . | . . . . Impact Weapon 1 | . . . 1 Slashing Weapon . | . . . . Piercing Weapon . | . . . . Special Melee Weapon . | . . . . Unidentified Prototypes 1 | . . 1 . Parts Lost 14 | . . 4 10 Power . | . . . . Propulsion 5 | . . 2 3 Utility 5 | . . 1 4 Weapon 4 | . . 1 3 Highest Loss Streak 6 | . . 4 6 Average Slot Usage (%) 95 | . 88 97 96 Engine 11 | . 14 11 11 Leg 31 | . 28 31 32 Device 6 | . 5 4 9 Storage 19 | . 14 22 19 Protection 3 | . . 6 2 Energy Gun 9 | . 14 12 4 Ballistic Gun 11 | . 12 9 13 Naked Turns . | . . . . Heaviest Build 38 | 10 15 38 38 Greatest Support 33 | 20 20 30 33 Greatest Overweight (x) 8 | 2 . 1 8 Average Overweight (x) . | . . . . Largest Inventory Capacity 10 | 6 8 10 10 Average Capacity 8 | 5 7 8 10 Most Carried 10 | 2 8 10 10 Average Carried 7 | . 5 8 8 Final Capacity 10 | 6 8 10 10 Final Carried 10 | 2 8 10 10 Class Distribution -------------------- 96% | Mutant 3% | Scavenger-Mutant Dominant Class ---------------- Mutant | -10/Materials Mutant | -9/Materials Mutant | -9/Storage Resources | -11 -10 -9 -9 ----------- Run | Scr Mat Mat Sto Matter Collected 993 | 205 . 400 388 Remotely . | . . . . Salvage Created 1603 | . 52 913 638 Parts 90 | . 2 58 30 Haulers Intercepted 3 | . . 2 1 Recyclers Shooed 4 | . 1 1 2 Parts Field Recycled . | . . . . Retrieved Matter . | . . . . Parts Self-Destructed . | . . . . Prevented . | . . . . Kills | -11 -10 -9 -9 ------- Run | Scr Mat Mat Sto Combat Hostiles Destroyed 29 | . . 14 15 Melee 1 | . . . 1 Guns 25 | . . 13 12 AOE 3 | . . 1 2 Classes Destroyed 8 | . 1 6 1 Worker 1 | . . 1 . Builder 1 | . . 1 . Hauler 3 | . . 2 1 Recycler 3 | . 1 1 1 Watcher 1 | . . 1 . Swarmer 6 | . . . 6 Grunt 16 | . . 12 4 Sentry 7 | . . 2 5 Best Kill Streak 7 | . 1 7 4 Combat Bots Only 6 | . . 6 4 Max Kills in Single Turn 2 | . 1 2 2 Gunslinging 1 | . . . 1 Exploded 1 | . . 1 1 Melee 1 | . . . 1 Uniques/NPCs Destroyed . | . . . . Combat | -11 -10 -9 -9 -------- Run | Scr Mat Mat Sto Damage Taken 2145 | . . 816 1329 Core 405 | . . 163 242 Absorbed by Shields . | . . . . Core Remaining (%) 100 | 100 100 . . Volleys Fired 110 | . 6 50 54 Largest 2 | . 2 2 2 Hottest 90 | . 60 90 79 Shots Fired 194 | . 8 91 95 Gun 192 | . 8 91 93 Cannon . | . . . . Launcher 2 | . . . 2 Special . | . . . . Kinetic 110 | . 2 29 79 Thermal 14 | . . . 14 Explosive 2 | . . . 2 Electromagnetic 68 | . 6 62 . Robot Hit Streak 12 | . 4 12 11 Robot Miss Streak 4 | . 2 3 4 Penetration Max . | . . . . Secondary Targets 3 | . . 1 2 Max Gunslinging Chain 1 | . . 1 1 Shots Hit Robots 130 | . 5 58 67 Core Hits 57 | . 2 27 28 Critical Hits 2 | . . 2 . Critical Kills . | . . . . Critical Parts Destroyed 2 | . . 2 . Melee Attacks 7 | . . . 7 Impact 7 | . . . 7 Slashing . | . . . . Piercing . | . . . . Sneak Attacks . | . . . . Combat Hostiles . | . . . . Follow-up Attacks . | . . . . Damage Inflicted 2059 | . 101 920 1038 Guns 1714 | . 55 859 800 Cannons . | . . . . Explosions 219 | . 46 39 134 Melee 91 | . . . 91 Ramming 35 | . . 22 13 Kinetic 849 | . . 163 686 Thermal 199 | . 46 39 114 Explosive 134 | . . . 134 Electromagnetic 751 | . 55 696 . Impact 91 | . . . 91 Slashing . | . . . . Piercing . | . . . . Highest Corruption 2 | . . 2 2 Average Corruption 2 | . . 2 2 Corruption Purged . | . . . . Effects 8 | . . 3 5 Message Errors 2 | . . . 2 Heat Flow Errors 3 | . . 1 2 Energy Discharges 1 | . . 1 . Data Loss (minor) 1 | . . 1 . Weapon Failures 1 | . . . 1 Overload Shots . | . . . . Overflow Damage 10 | . 10 . . Projectiles . | . . . . Explosions 10 | . 10 . . Melee . | . . . . Knockbacks 1 | . . . 1 Impact 1 | . . . 1 Kinetic . | . . . . Secondary . | . . . . Self-Inflicted Damage 4 | . . . 4 Shots 1 | . . . 1 Rammed 3 | . . 1 2 Targets Rammed 10 | . . 6 4 Kicked 7 | . . 5 2 Crushed . | . . . . Highest Temperature 436 | . 20 216 436 Average Temperature 91 | . 12 68 130 Received Heat Transfer 831 | . . 426 405 Effects 3 | . . . 3 Shutdowns 1 | . . . 1 Short Circuit 2 | . . . 2 Siege Activations . | . . . . Robots Corrupted 1 | . . 1 . Combat Hostiles . | . . . . Parts Fried 3 | . . 3 . Impact Corruptions . | . . . . Robots Melted . | . . . . Combat Hostiles . | . . . . Parts Melted 1 | . . . 1 Heat Transferred 446 | . 50 100 296 Parts Sabotaged . | . . . . Parts Stolen . | . . . . Parts Stripped . | . . . . Power Chain Reactions 2 | . 1 1 . Missiles Intercepted . | . . . . Alert | -11 -10 -9 -9 ------- Run | Scr Mat Mat Sto Peak Influence 450 | . 5 365 450 Average Influence 156 | . 1 140 265 Maximum Alert Level 2 | . . 1 2 Low Security (%) 55 | 100 100 58 27 Level 1 42 | . . 41 68 Level 2 1 | . . . 4 Level 3 . | . . . . Level 4 . | . . . . Level 5 . | . . . . High Security . | . . . . Max Security . | . . . . Squads Dispatched 4 | . 1 1 2 Investigation 1 | . . . 1 Extermination . | . . . . Reinforcement 3 | . 1 1 1 Assault . | . . . . Garrison . | . . . . Intercept . | . . . . Construction Impeded . | . . . . Haulers Reinforced . | . . . . Stealth | -11 -10 -9 -9 --------- Run | Scr Mat Mat Sto Distress Signals 7 | . . 6 1 Communications Jammed . | . . . . Distress Signals . | . . . . Times Spotted 58 | . 6 26 26 Peak Tracking Total 12 | . 3 12 5 Tactical Retreats 4 | . . 1 3 Traps | -11 -10 -9 -9 ------- Run | Scr Mat Mat Sto Traps Triggered 2 | . 1 . 1 Indirectly . | . . . . Trap Hack Attempts . | . . . . Triggered . | . . . . Disarmed . | . . . . Reprogrammed . | . . . . Reused . | . . . . Traps Extracted . | . . . . Installed . | . . . . Triggered . | . . . . Machines | -11 -10 -9 -9 ---------- Run | Scr Mat Mat Sto Machines Disabled 3 | . . 2 1 Max in Single Turn 1 | . . 1 1 Machines Sabotaged . | . . . . Garrisons Compromised . | . . . . Overloaded Fab Kills . | . . . . Fab Network Shutdowns . | . . . . Hacking | -11 -10 -9 -9 --------- Run | Scr Mat Mat Sto Machines Accessed 1 | . . 1 . Terminals . | . . . . Fabricators . | . . . . Repair Stations . | . . . . Recycling Units . | . . . . Scanalyzers 1 | . . 1 . Garrison Access . | . . . . Total Hacks 2 | . . 2 . Successful 2 | . . 2 . Failed . | . . . . Catastrophic . | . . . . Database Lockouts . | . . . . Manual . | . . . . Terminals . | . . . . Fabricators . | . . . . Repair Stations . | . . . . Recycling Units . | . . . . Scanalyzers 2 | . . 2 . Garrison Access . | . . . . Terminal Hacks . | . . . . Fabricator Hacks . | . . . . Repair Station Hacks . | . . . . Recycling Unit Hacks . | . . . . Scanalyzer 2 | . . 2 . Insert Component 1 | . . 1 . Analyze 1 | . . 1 . Garrison Access Hacks . | . . . . Unauthorized Hacks . | . . . . Terminals . | . . . . Fabricators . | . . . . Repair Stations . | . . . . Recycling Units . | . . . . Scanalyzers . | . . . . Garrison Access . | . . . . Data Cores Recovered . | . . . . Used . | . . . . Hacking Detections 1 | . . 1 . Full Trace Events . | . . . . Feedback Events . | . . . . Feedback Blocked . | . . . . Robot Schematics Acquired . | . . . . Robots Built . | . . . . Matter . | . . . . Time . | . . . . Total Robot Build Rating . | . . . . Part Schematics Acquired 1 | . . 1 . Parts Built . | . . . . Matter . | . . . . Time . | . . . . Total Part Build Rating . | . . . . Parts Repaired . | . . . . Time . | . . . . Parts Recycled . | . . . . Recycled Matter . | . . . . Retrieved Matter . | . . . . Retrieved Components . | . . . . Parts Scanalyzed 1 | . . 1 . Part Schematics Acquired 1 | . . 1 . Parts Damaged . | . . . . Bothacking | -11 -10 -9 -9 ------------ Run | Scr Mat Mat Sto Used RIF Installer . | . . . . Robots Hacked . | . . . . Non-combat . | . . . . Combat . | . . . . Robot Hacks Applied . | . . . . Relay Couplers Released . | . . . . Robots Rewired . | . . . . Allies Hacked . | . . . . Hacks Repelled . | . . . . Allies | -11 -10 -9 -9 -------- Run | Scr Mat Mat Sto Total Allies . | . . . . Largest Group . | . . . . Highest-Rated Group . | . . . . Highest-Rated Ally . | . . . . Total Orders . | . . . . Ally Attacks . | . . . . Total Damage . | . . . . Kills . | . . . . Allies Corrupted . | . . . . Allies Melted . | . . . . Intel | -11 -10 -9 -9 ------- Run | Scr Mat Mat Sto Robot Analysis Total . | . . . . Derelict Logs Recovered . | . . . . Drone Launches . | . . . . Drone Recoveries . | . . . . Exploration | -11 -10 -9 -9 ------------- Run | Scr Mat Mat Sto Turns Passed 1475 | 63 241 638 533 Spaces Moved 784 | 45 179 324 236 Core 15 | 14 . . 1 Treads . | . . . . Legs 769 | 31 179 324 235 Wheels . | . . . . Hover . | . . . . Flight . | . . . . Fastest Speed 50 | 50 120 120 120 Average Speed 130 | 113 120 133 138 Slowest Speed 450 | 150 120 150 450 Overloaded Moves . | . . . . Propulsion Burnouts . | . . . . Robots Hopped . | . . . . Cave-ins Triggered . | . . . . Exploration Rate (%) 34 | 3 42 38 56 Regions Visited 3 Branch Regions 1 Pre-discovered Areas . | . . . . Known Exits Taken . | . . . . Unknown Exits Taken 3 | 1 1 1 . Scrap Searched . | . . . . Spaces Dug . | . . . . Terrain Destroyed 24 | . 2 5 17 Melee . | . . . . Projectile . | . . . . AOE 24 | . 2 5 17 Actions | -11 -10 -9 -9 --------- Run | Scr Mat Mat Sto Total 1042 | 53 195 446 348 Wait 36 | . . 15 21 Move 781 | 44 178 323 236 Hop . | . . . . Pick Up 26 | 2 6 14 4 Fast Attach 16 | 6 2 8 . Attach 11 | . 1 5 5 Detach 1 | . . 1 . Swap 21 | 1 2 6 12 Drop 23 | . . 18 5 Fire 110 | . 6 50 54 Melee 7 | . . . 7 Ram . | . . . . Kick 10 | . . 6 4 Crush . | . . . . Escape Stasis . | . . . . Rewire . | . . . . Trap . | . . . . Miscellaneous . | . . . . Route ------- -11/Scrapyard -10/Materials (discovered 2 exits: *Mat / [*Min]) -9/Materials (discovered 2 exits: [*Min] / [*Sto]) -9/Storage History --------- Turn | Location | Event 14 | -11/Scrapyard | Discovered new exit (range 16) 64 | -11/Scrapyard | Entered Materials 201 | -10/Materials | Discovered new exit (range 12) 261 | -10/Materials | Discovered new exit (range 16) 305 | -10/Materials | Entered another Materials area 305 | -9/Materials | Evolved 2 slots: Propulsion x1, Utility x1 344 | -9/Materials | Build established: Mutant 513 | -9/Materials | Discovered new exit (range 7) 726 | -9/Materials | Lost 4 parts (2n1u1w) 913 | -9/Materials | Discovered new exit (range 8) 943 | -9/Materials | Entered Storage 1050 | -9/Storage | Core integrity fell below 50% 1468 | -9/Storage | Core integrity fell below 20% 1476 | -9/Storage | Destroyed by G-34 Mercenary with Small Laser Last Messages --------------- 01349_ K-01 Serf collects debris. 01350_ U-05 Engineer lays Concrete. 01355_ W-16 Scout sends out distress signal. 01356_ U-05 Engineer builds a Wall. 01377_ Dropped Lrg. Storage Unit. 01379_ Acquired Flail. 01397_ G-34 Mercenary destroyed. 01400_ Acquired 20 matter. 01401_ SWDSWC4H|F3SALA 8GL3A= 01439_ K-01 Serf cleans the Transport Mainframe. 01452_ Beam Rifle destroyed. 01458_ Imp. Aluminum Leg destroyed. 01461_ Heat Shielding destroyed. 01466_ Aluminum Leg destroyed. 01468_ QZUS5ZEBMOYK&BVKZS9 01470_ K-01 Serf collects debris. 01472_ Flail destroyed. 01472_ Aluminum Leg destroyed. 01473_ Transport Mainframe disabled. 01475_ K-01 Serf collects debris. Map ----- +----------------------------------------------------+ | ################# ##########????# # | | #???????????????# ^#?????????????# #% | | #???????????????# #?????????????# %+ """ | | #???????????????# #?????????????# # "R | | #???????????????# #?????????????# # """ | | #???????????????# +?????????????# # """ | | ##??????????????# #?????????????# # | | ?????????????? #?????????????# ##### | | ????????????? #?????????????# #???? | | ???????????? #?????????????# #???? | | ####+##???????##???# #?????????????# #???? | | #????????????# ????? #?????????????# #???? | | +???????????? ????? #?????????????# #???? | | #####??????????? ""???? #?????????????# #???? | | ???????????????? """"??? #?????????????# #???? | | ???????????????? """???? +?????????????# #???? | | ???????????????? ""????? #?????????????# #???? | | #####??????????? ????? #??############ ##??? | | +??????????? ?????? ???# # #### | | #??????????? ?????? ???# =# "" | | ###+########+#???####+#####?""" """!/ T | | #???# # """ """!# | | #???# g # """ """ # #### | | ^ #####g # ###+###??? | | ^ /Y a """"# # ???? | | #####+#### k @""""# # ?? | | #???# T??# g """"##### ##### """ """ | | #???#"#??# """#???##????# """ """ | | ###+###+###??????# #?????????# """ """ | | # #??????# #?????????# | | ##### #??????####Y#####?????????# | | ????# #?????????###?????????????# | | ????# #?????????????????????????#?###?###? | | ????###########??????????????????????????????????? | | | | | | | | | | | | | | | | | | | | | | | | | | | | | | | | | +----------------------------------------------------+ Best States ------------- Heat Dissipation 28 Energy Generation 14 Energy Capacity 280 Matter Stores 450 Matter Capacity 450 Sight Range 16 Robot Scan Range 10 Terrain Scan Density 10 Heat Shielding 75 Armor Coverage 225 Evasion (%) 40 Item Schematics ----------------- Grenade Launcher | -9/Materials | Scanalyzed Robot Schematics ------------------ None Fabricated ------------ Nothing Alien Tech Used ----------------- None Achievements -------------- None Challenges ------------ None Game ------ Seed AlloySniperSystem Manual? 0 Play Time 00:17:35 Cumulative 23.9 hours Start 2019.11.28 @ 17:50:34 End 2019.11.28 @ 18:07:15 Sessions 1 Manual Loads 0 Difficulty Rogue Special Mode None Game No. 22 Rogue 22 Adventurer 0 Explorer 0 Win Type - Total 0 Types 0/0/0/0/0/0/0 Lore% 16 Gallery% 32 Achievement% 19 Wizard Run 0 Options --------- ASCII 0 Keyboard 1 Movement Numpad Keybinds 0 Fullscreen 2 Font 18/SmallcapsGlow Map View 76x50 Tactical HUD 1 Map Filters NONE Filters NONE Steam 1 RUN: 29b522bf-87eb-4bcc-ab45-b182dfe6ef51